Cogmind - Beta 15 @@@ ROGUE MODE // 2025.07.04 @ 22:25:38 Player: Asimov Result: Self-destructed Performance ------------- Evolutions (2) 1000 Regions Visited (6) 1200 Robots Destroyed (25) 125 Value Destroyed (532) 532 Prototype IDs (2) 40 Alien Tech Used (0) 0 Bonus (-146) -146 TOTAL SCORE: 2751 Bonus ------- Follower Combat Kills 62 Friendly Fire -208 Cogmind --------- Core Integrity 447/550 Matter 0/300 Energy 208/400 System Corruption 2% Temperature Critical (506) Movement Core (800) Ox15 Location -8/Storage Parts ------- > --- POWER (3) -------- Ion Engine Ion Engine Light Nuclear Core > --- PROPULSION (2) --- Compact Wheel > --- UTILITY (3) ------ Large Storage Unit Targeting Computer Core Shielding > --- WEAPON (3) ------- Ion Cannon Assault Cannon > --- INVENTORY (15) --- Advanced Visual Processing Unit Experimental Sensor Array Improved Terrain Scan Processor Medium Armor Plating Beam Rifle Heavy Assault Rifle Peak State ------------ > --- POWER ------------ Improved Ion Engine Light Nuclear Core Light Nuclear Core > --- PROPULSION ------- Wheel Compact Wheel > --- UTILITY ---------- Large Storage Unit Targeting Computer Core Shielding > --- WEAPON ----------- Ion Cannon Assault Cannon Grenade Launcher > --- INVENTORY -------- Ion Engine Ion Engine Compact Wheel Advanced Visual Processing Unit Experimental Sensor Array Improved Terrain Scan Processor Medium Armor Plating Medium Laser Medium Laser Beam Rifle Heavy Assault Rifle [Rating: 22] Favorites ----------- Power Ion Engine Engine Ion Engine Power Core Light Nuclear Core Propulsion Wheel Wheel Wheel Utility Large Storage Unit Storage Large Storage Unit Processor Targeting Computer Protection Core Shielding Weapon Medium Laser Energy Gun Medium Laser Energy Cannon Ion Cannon Ballistic Gun Light Assault Rifle Ballistic Cannon Assault Cannon Launcher Grenade Launcher Build | -11 -10 -10 -10 -9 -8 -8 ------- Run | Yrd Mat Min Exi Min Mat Sto Slots Evolved 4 | . . . . . 4 . Power 2 | . . . . . 2 . Propulsion . | . . . . . . . Utility 1 | . . . . . 1 . Weapon 1 | . . . . . 1 . Parts Attached 20 | 6 1 2 . . 7 4 Power 7 | 1 . 1 . . 3 2 Engine 5 | 1 . 1 . . 3 . Core 2 | . . . . . . 2 Reactor . | . . . . . . . Propulsion 3 | 2 . . . . . 1 Treads . | . . . . . . . Leg . | . . . . . . . Wheel 3 | 2 . . . . . 1 Hover . | . . . . . . . Flight . | . . . . . . . Utility 4 | 1 1 1 . . 1 . Device . | . . . . . . . Storage 2 | 1 1 . . . . . Processor 1 | . . 1 . . . . Hackware . | . . . . . . . Protection 1 | . . . . . 1 . Artifact . | . . . . . . . Weapon 6 | 2 . . . . 3 1 Energy Gun 1 | 1 . . . . . . Energy Cannon 1 | . . . . . . 1 Ballistic Gun 2 | 1 . . . . 1 . Ballistic Cannon 1 | . . . . . 1 . Launcher 1 | . . . . . 1 . Special Weapon . | . . . . . . . Impact Weapon . | . . . . . . . Slashing Weapon . | . . . . . . . Piercing Weapon . | . . . . . . . Special Melee Weapon . | . . . . . . . Unidentified Prototypes . | . . . . . . . Parts Lost 4 | . . . . . . 4 Power 1 | . . . . . . 1 Propulsion 2 | . . . . . . 2 Utility . | . . . . . . . Weapon 1 | . . . . . . 1 Highest Loss Streak 3 | . . . . . . 3 To Critical Strikes . | . . . . . . . Average Backups 7 | 1 5 8 9 9 6 8 Power 2 | . 2 3 3 3 1 1 Propulsion . | . 1 . . . . . Utility 1 | . . 1 2 2 2 3 Weapon 3 | . 1 3 4 4 2 2 Tool/Special . | . . . . . . . Unused Backups 9 | . 1 2 . . 1 5 Power 1 | . 1 . . . . . Propulsion 2 | . . 2 . . . . Utility 4 | . . . . . 1 3 Weapon 2 | . . . . . . 2 Tool/Special . | . . . . . . . Average Slot Usage (%) 96 | . 85 97 100 100 96 94 Engine 15 | . 14 14 14 14 26 19 Wheel 25 | . 28 28 28 28 18 13 Storage 13 | . 14 14 14 14 9 9 Processor 10 | . . 11 14 14 9 9 Protection 1 | . . . . . 7 9 Energy Gun 12 | . 14 14 14 14 9 5 Ballistic Gun 11 | . 14 14 14 14 6 . Ballistic Cannon 1 | . . . . . 2 9 Launcher 1 | . . . . . 7 7 Peak Build Rating 22 | 6 6 8 8 9 16 22 Average Rating 8 | 4 6 7 8 8 14 17 On Entrance 7 | . 6 6 8 8 9 16 Naked Turns . | . . . . . . . Heaviest Build 52 | 13 28 28 28 28 48 52 Greatest Support 26 | 26 26 26 26 26 26 26 Greatest Overweight (x) 5 | 1 1 1 1 1 1 5 Average Overweight (x) . | . . 1 1 1 1 1 Largest Inventory Capacity 15 | 8 15 15 15 15 15 15 Average Capacity 14 | 6 13 15 15 15 15 15 Most Carried 11 | 2 7 10 9 10 9 11 Average Carried 7 | 1 5 8 9 9 5 8 Final Capacity 15 | 8 15 15 15 15 15 15 Final Carried 10 | 2 7 9 9 10 8 6 Class Distribution -------------------- 82% | Mutant 17% | Gunner Dominant Class ---------------- Mutant | -10/Materials Mutant | -10/Mines Mutant | -10/Exiles Mutant | -9/Mines Gunner | -8/Materials Gunner | -8/Storage Resources | -11 -10 -10 -10 -9 -8 -8 ----------- Run | Yrd Mat Min Exi Min Mat Sto Matter Collected 315 | 239 45 26 . 5 . . Remotely . | . . . . . . . Salvage Created 585 | . 112 54 . 50 93 276 Parts 39 | . 9 6 . 4 12 8 Haulers Intercepted . | . . . . . . . Recyclers Shooed . | . . . . . . . Parts Field Recycled . | . . . . . . . Retrieved Matter . | . . . . . . . Parts Self-Destructed . | . . . . . . . Prevented . | . . . . . . . Kills | -11 -10 -10 -10 -9 -8 -8 ------- Run | Yrd Mat Min Exi Min Mat Sto Combat Hostiles Destroyed 21 | . 5 3 . 3 5 5 Guns 12 | . 5 3 . 3 1 . Cannons 4 | . . . . . 1 3 AOE 5 | . . . . . 3 2 Classes Destroyed 7 | . 2 . . . 1 4 Worker 1 | . . . . . . 1 Mechanic 2 | . . . . . . 2 Swarmer 13 | . 3 3 . 3 4 . Grunt 5 | . 2 . . . . 3 Brawler 1 | . . . . . . 1 Duelist 1 | . . . . . . 1 Sentry 1 | . . . . . 1 . Thug 1 | . . . . . . 1 Best Kill Streak 7 | . 4 3 . 3 4 7 Combat Bots Only 4 | . 4 3 . 3 4 4 Max Kills in Single Turn 4 | . 1 1 . 1 4 3 Gunslinging . | . . . . . . . Exploded 3 | . . . . . 3 1 Melee . | . . . . . . . Uniques/NPCs Destroyed . | . . . . . . . Combat | -11 -10 -10 -10 -9 -8 -8 -------- Run | Yrd Mat Min Exi Min Mat Sto Hostile Shots Fired 76 | . 22 6 . 10 7 31 Missed 17 | . 8 . . . 2 7 Hits 59 | . 14 6 . 10 5 24 Projectile 59 | . 14 6 . 10 5 24 Critical Strikes 3 | . . . . . . 3 Damage Taken 809 | . 128 45 . 85 51 500 Core 168 | . 23 15 . 27 5 98 Absorbed by Shields . | . . . . . . . Redirected to Shielding 7 | . . . . . 1 6 Core Remaining (%) 87 | 100 . . . 74 . . Volleys Fired 45 | . 16 4 . 5 4 16 Largest 3 | . 2 2 . 2 3 3 Hottest 127 | . 70 70 . 70 117 127 Shots Fired 92 | . 32 8 . 10 9 33 Gun 57 | . 32 8 . 10 7 . Cannon 27 | . . . . . 1 26 Launcher 8 | . . . . . 1 7 Special . | . . . . . . . Kinetic 42 | . 16 4 . 5 4 13 Thermal 42 | . 16 4 . 5 4 13 Explosive 8 | . . . . . 1 7 Electromagnetic . | . . . . . . . Robot Hit Streak 9 | . 7 3 . 3 3 9 Robot Miss Streak 2 | . 2 1 . 2 1 2 Penetration Max . | . . . . . . . Secondary Targets 2 | . 1 1 . . . . Max Gunslinging Chain 1 | . 1 1 . . . . Shots Hit Robots 50 | . 21 5 . 4 5 15 Core Hits 49 | . 8 4 . 3 7 27 Critical Kills . | . . . . . . . Critical Parts Destroyed . | . . . . . . . Critical Strikes 2 | . 2 . . . . . Burn 2 | . 2 . . . . . Melee Attacks . | . . . . . . . Impact . | . . . . . . . Slashing . | . . . . . . . Piercing . | . . . . . . . Sneak Attacks . | . . . . . . . Combat Hostiles . | . . . . . . . Follow-up Attacks . | . . . . . . . Damage Inflicted 1720 | . 230 52 . 45 162 1231 Guns 384 | . 230 52 . 45 57 . Cannons 427 | . . . . . 21 406 Explosions 909 | . . . . . 84 825 Melee . | . . . . . . . Ramming . | . . . . . . . Kinetic 362 | . 77 15 . 7 66 197 Thermal 449 | . 153 37 . 38 12 209 Explosive 909 | . . . . . 84 825 Electromagnetic . | . . . . . . . Impact . | . . . . . . . Slashing . | . . . . . . . Piercing . | . . . . . . . Highest Corruption 2 | . . . . . . 2 Average Corruption 1 | . . . . . . 1 Corruption Purged . | . . . . . . . Corruption Blocked . | . . . . . . . Effects 2 | . . . . . . 2 Message Errors 2 | . . . . . . 2 Overload Shots . | . . . . . . . Overflow Damage 31 | . . . . . . 31 Projectiles 31 | . . . . . . 31 Explosions . | . . . . . . . Melee . | . . . . . . . Knockbacks 1 | . . . . . . 1 Impact . | . . . . . . . Kinetic 1 | . . . . . . 1 Secondary . | . . . . . . . Self-Inflicted Damage . | . . . . . . . Shots . | . . . . . . . Rammed . | . . . . . . . Targets Rammed . | . . . . . . . Kicked . | . . . . . . . Crushed . | . . . . . . . Highest Temperature 619 | . 120 80 . 60 90 619 Average Temperature 162 | . 55 37 . 29 46 340 Received Heat Transfer 315 | . 36 . . . 9 270 Effects 23 | . . . . . . 23 Shutdowns 7 | . . . . . . 7 Energy Bleed 2 | . . . . . . 2 Interference 2 | . . . . . . 2 Matter Decay 4 | . . . . . . 4 Short Circuit 3 | . . . . . . 3 Damage (major) 4 | . . . . . . 4 Damage (core) 1 | . . . . . . 1 Siege Activations . | . . . . . . . Martial Activations . | . . . . . . . Shielding Activations . | . . . . . . . Robots Disrupted . | . . . . . . . Combat Hostiles . | . . . . . . . Robots Corrupted . | . . . . . . . Combat Hostiles . | . . . . . . . Parts Fried . | . . . . . . . Impact Corruptions . | . . . . . . . Robots Melted . | . . . . . . . Combat Hostiles . | . . . . . . . Parts Melted 4 | . 2 . . 1 . 1 Heat Transferred 1135 | . 592 111 . 111 37 284 Parts Sabotaged . | . . . . . . . Parts Stolen . | . . . . . . . Parts Stripped . | . . . . . . . Power Chain Reactions . | . . . . . . . Alert | -11 -10 -10 -10 -9 -8 -8 ------- Run | Yrd Mat Min Exi Min Mat Sto Maximum Alert Level . | . . . . . . . Low Security (%) 100 | 100 100 100 . 100 100 100 Level 1 . | . . . . . . . Level 2 . | . . . . . . . Level 3 . | . . . . . . . Level 4 . | . . . . . . . Level 5 . | . . . . . . . High Security . | . . . . . . . Max Security . | . . . . . . . Peak Influence 188 | . 80 70 . 85 119 188 Initial 45 | . . . . . 29 45 Average 26 | . 36 11 . 12 34 69 Influence Increases 645 | . 120 70 . 85 140 230 Destroy 0b10 Robot/C 460 | . 100 60 . 60 100 140 Destroy 0b10 Robot/NC 20 | . . . . . . 20 Destroy Leader 70 | . 20 10 . 10 20 10 Allied During Kill 18 | . . . . . . 18 Successful Hack 5 | . . . . . 5 . Disable Machine 30 | . . . . . 15 15 Destroy Structure 27 | . . . . . . 27 Lose Combat Pursuer 15 | . . . . 15 . . Influence Decreases 506 | . 120 70 . 10 106 200 Entered New Map 110 | . . . . . 46 64 Time Decay 340 | . 120 70 . 10 60 80 Lost Part 36 | . . . . . . 36 Lost Ally 20 | . . . . . . 20 Squads Dispatched 5 | . 2 . . . . 3 Investigation . | . . . . . . . Extermination . | . . . . . . . Reinforcement 3 | . 2 . . . . 1 Assault 2 | . . . . . . 2 Garrison . | . . . . . . . Intercept . | . . . . . . . Searches Triggered . | . . . . . . . Construction Impeded . | . . . . . . . Haulers Reinforced . | . . . . . . . Active Scanning Responses . | . . . . . . . Cargo Convoy Interrupts . | . . . . . . . Stealth | -11 -10 -10 -10 -9 -8 -8 --------- Run | Yrd Mat Min Exi Min Mat Sto Distress Signals 2 | . 1 . . . 1 . Communications Jammed . | . . . . . . . Distress Signals . | . . . . . . . Times Spotted 35 | . 9 4 . 4 6 12 Peak Tracking Total 5 | . 4 3 . 3 5 5 Tactical Retreats 1 | . . . . 1 . . Traps | -11 -10 -10 -10 -9 -8 -8 ------- Run | Yrd Mat Min Exi Min Mat Sto Traps Triggered 2 | . . . . . . 2 Indirectly . | . . . . . . . Trap Hack Attempts . | . . . . . . . Triggered . | . . . . . . . Disarmed . | . . . . . . . Reprogrammed . | . . . . . . . Reused . | . . . . . . . Traps Extracted . | . . . . . . . Installed . | . . . . . . . Triggered . | . . . . . . . Machines | -11 -10 -10 -10 -9 -8 -8 ---------- Run | Yrd Mat Min Exi Min Mat Sto Machines Disabled 3 | . 1 . . . 1 1 Max in Single Turn 1 | . 1 . . . 1 1 Machines Repaired . | . . . . . . . Machines Dismantled . | . . . . . . . Machines Sabotaged . | . . . . . . . Overloaded Fab Kills . | . . . . . . . Hacking | -11 -10 -10 -10 -9 -8 -8 --------- Run | Yrd Mat Min Exi Min Mat Sto Machines Accessed 8 | . 1 1 4 . 1 1 Terminals 4 | . 1 1 . . 1 1 Fabricators . | . . . . . . . Repair Stations . | . . . . . . . Recycling Units . | . . . . . . . Scanalyzers . | . . . . . . . Garrison Access . | . . . . . . . Total Hacks 8 | . 1 1 4 . 1 1 Successful 6 | . . . 4 . 1 1 Failed 2 | . 1 1 . . . . Catastrophic . | . . . . . . . Database Lockouts . | . . . . . . . Manual 3 | . . . 3 . . . Terminals 4 | . 1 1 . . 1 1 Fabricators . | . . . . . . . Repair Stations . | . . . . . . . Recycling Units . | . . . . . . . Scanalyzers . | . . . . . . . Garrison Access . | . . . . . . . Terminal Hacks 6 | . . . 4 . 1 1 Record 4 | . . . 4 . . . Prototype ID Bank 1 | . . . . . 1 . Open Door 1 | . . . . . . 1 Fabricator Hacks . | . . . . . . . Repair Station Hacks . | . . . . . . . Recycling Unit Hacks . | . . . . . . . Scanalyzer . | . . . . . . . Garrison Access Hacks . | . . . . . . . Unauthorized Hacks . | . . . . . . . Terminals . | . . . . . . . Fabricators . | . . . . . . . Repair Stations . | . . . . . . . Recycling Units . | . . . . . . . Scanalyzers . | . . . . . . . Garrison Access . | . . . . . . . Data Cores Recovered . | . . . . . . . Used . | . . . . . . . Hacking Detections 1 | . . . . . 1 . Full Trace Events . | . . . . . . . Feedback Events . | . . . . . . . Feedback Blocked . | . . . . . . . Robot Schematics Acquired . | . . . . . . . Robots Built . | . . . . . . . Authchips . | . . . . . . . Time . | . . . . . . . Total Robot Build Rating . | . . . . . . . Part Schematics Acquired . | . . . . . . . Parts Built . | . . . . . . . Authchips . | . . . . . . . Time . | . . . . . . . Total Part Build Rating . | . . . . . . . Parts Repaired . | . . . . . . . Time . | . . . . . . . Parts Recycled . | . . . . . . . Recycled Matter . | . . . . . . . Retrieved Matter . | . . . . . . . Retrieved Components . | . . . . . . . Parts Scanalyzed . | . . . . . . . Part Schematics Acquired . | . . . . . . . Parts Damaged . | . . . . . . . Bothacking | -11 -10 -10 -10 -9 -8 -8 ------------ Run | Yrd Mat Min Exi Min Mat Sto Used RIF Installer . | . . . . . . . Robots Hacked . | . . . . . . . Non-combat . | . . . . . . . Combat . | . . . . . . . Robot Hacks Applied . | . . . . . . . Relay Couplers Released . | . . . . . . . Fabnet Peak Effective % . | . . . . . . . Robots Rewired . | . . . . . . . Allies Hacked . | . . . . . . . Hacks Repelled . | . . . . . . . Allies | -11 -10 -10 -10 -9 -8 -8 -------- Run | Yrd Mat Min Exi Min Mat Sto Total Allies 2 | . . . . . . 2 Largest Group 2 | . . . . . . 2 Highest-Rated Group 62 | . . . . . . 62 Highest-Rated Ally 31 | . . . . . . 31 Total Orders . | . . . . . . . Ally Attacks 32 | . . . . . . 32 Total Damage 394 | . . . . . . 394 Kills 2 | . . . . . . 2 Allies Corrupted . | . . . . . . . Allies Melted . | . . . . . . . Intel | -11 -10 -10 -10 -9 -8 -8 ------- Run | Yrd Mat Min Exi Min Mat Sto Active Infowar (turns) . | . . . . . . . Robot Analysis Total . | . . . . . . . Derelict Logs Recovered 3 | . . 2 . 1 . . Drone Launches . | . . . . . . . Drone Recoveries . | . . . . . . . Exploration | -11 -10 -10 -10 -9 -8 -8 ------------- Run | Yrd Mat Min Exi Min Mat Sto Turns Passed 1669 | 60 255 465 443 154 131 161 Spaces Moved 1406 | 59 184 424 422 129 101 87 Core 6 | 6 . . . . . . Treads . | . . . . . . . Legs . | . . . . . . . Wheels 1400 | 53 184 424 422 129 101 87 Hover . | . . . . . . . Flight . | . . . . . . . Fastest Speed 50 | 50 90 105 105 105 105 105 Average Speed 104 | 83 102 105 105 105 105 109 Slowest Speed 155 | 95 105 105 105 105 105 155 Overloaded Moves . | . . . . . . . Propulsion Burnouts . | . . . . . . . Robots Hopped . | . . . . . . . Potential Cave-ins . | . . . . . . . Cave-ins Triggered . | . . . . . . . Exploration Rate (%) 33 | 3 28 70 72 37 11 16 Regions Visited 6 Branch Regions 4 Pre-discovered Areas 1 | . . . . 1 . . Known Exits Taken 1 | . . . . . 1 . Unknown Exits Taken 5 | 1 1 1 1 1 . . Scrap Searched . | . . . . . . . Spaces Dug . | . . . . . . . Terrain Destroyed 33 | . . . . . . 33 Melee . | . . . . . . . Projectile 4 | . . . . . . 4 AOE 29 | . . . . . . 29 Terrain Rammed . | . . . . . . . Walls Destroyed . | . . . . . . . Machines Disabled . | . . . . . . . Actions | -11 -10 -10 -10 -9 -8 -8 --------- Run | Yrd Mat Min Exi Min Mat Sto Total 1527 | 67 222 437 421 138 117 125 Wait 25 | . 13 . . 4 . 8 Move 1400 | 58 183 423 421 128 100 87 Hop . | . . . . . . . Pick Up 24 | 3 7 5 . 1 4 4 Fast Attach 6 | 5 . 1 . . . . Attach 8 | 1 . . . . 4 3 Detach . | . . . . . . . Swap 8 | . 1 1 . . 3 3 Drop 11 | . 2 3 . . 2 4 Fire 45 | . 16 4 . 5 4 16 Melee . | . . . . . . . Ram . | . . . . . . . Kick . | . . . . . . . Crush . | . . . . . . . Escape Stasis . | . . . . . . . Rewire . | . . . . . . . Trap . | . . . . . . . Miscellaneous . | . . . . . . . Route ------- -11/Scrapyard -10/Materials -10/Mines -10/Exiles (discovered 2 exits: [*Min x2]) -9/Mines -8/Materials (discovered 3 exits: Fac / *Sto x2) -8/Storage History --------- Turn | Location | Event 28 | -11/Scrapyard | Discovered new exit (range 15) 61 | -11/Scrapyard | Entered Materials 281 | -10/Materials | Discovered new exit (range 16) 302 | -10/Materials | Build established: Mutant 316 | -10/Materials | Entered Mines 343 | -10/Mines | Learned 2 Materials zone layouts 345 | -10/Mines | Joined a pair of Derelicts in attacking an 0b10 outpost 356 | -10/Mines | Received a Rocket Launcher from a helpful Derelict 511 | -10/Mines | Found a hidden stash of uninstalled traps 760 | -10/Mines | Learned 2 Materials zone layouts 774 | -10/Mines | Deemed a non-threat by the Exiles lab entrance 775 | -10/Mines | Discovered new exit (range 5) 781 | -10/Mines | Entered Exiles 781 | -10/Exiles | Found Exiles lab abandoned 807 | -10/Exiles | Discovered new exit (range 15) 1204 | -10/Exiles | Discovered new exit (range 14) 1224 | -10/Exiles | Entered Mines 1329 | -9/Mines | Found a damaged Exp. Sensor Array with a note attached 1331 | -9/Mines | Found Prototype Device 1367 | -9/Mines | Discovered new exit (range 11) 1374 | -9/Mines | Learned location of Zion (-6) 1378 | -9/Mines | Entered Materials 1378 | -8/Materials | Evolved 4 slots: Power x2, Utility x1, Weapon x1 1379 | -8/Materials | Identified exit to Factory 1379 | -8/Materials | Identified exit to Storage 1509 | -8/Materials | Entered Storage 1540 | -8/Storage | Met a pair of Derelict thieves 1670 | -8/Storage | Self-destructed Last Messages --------------- 01662_ Dropped Broken Lgt. Nuclear Core. 01663_ K-01 Serf collects debris. 01666_ Power failure, Ion Engine shutdown. 01666_ U-05 Engineer builds a Door. 01666_ K-01 Serf collects debris. 01667_ Com. Wheel broken. 01667_ Overheating: Short circuit. 01668_ Power failure, Ion Engine shutdown. 01668_ Lgt. Nuclear Core broken. 01668_ Overheating: Short circuit. 01669_ Overheating: Broken Com. Wheel damaged (-7). 01669_ Overheating: Ion Cannon damaged (-56). 01669_ Overheating: Lrg. Storage Unit damaged (-143). 01669_ Overheating: Ion Engine damaged (-38). 01669_ K-01 Serf collects debris. 01670_ Overheating: Matter decay (-1). 01670_ I-25 Savior destroyed. 01670_ U-05 Engineer builds a Wall. Map ----- +----------------------------------------------------+ | ?# "#T######??????????????? | | ?# + !!!!#??????????????? | | ?# # #??????????????? | | ?# # !!!!#??????????????? | | ?# #########??????????????? | | ?# #??????????????????????? | | ?# #??????????????????????? | | ?# #??????????????????????? | | ?# #??????????????????????? | | ?# #######????????????????? | | ?# #% /* ##??????????????? | | ?# # #??????????????? | | ?#% # % #####???????????? | | ?# # /" ????????????? | | ?# ####????????????? | | ?# k / # ##????????????? | | ?# !%== +# #????????????? | | ?# =/%%= #?????????????? | | ?# [%=% #?????????????? | | ?#^[]% #?????????????? | | ?# [[*g #???????????????? | | ?# ] % ##???????????????? | | ?# !%* ###??????????????? | | ?#%%% *! + ???????? | | ?# ;" " ###### ??????? | | ?# @#"""##?????????????????? | | ?##g######??????????????????? | | ?# #???????????????????????? | | ?# ???????????????????????? | | ?# "???????????????????????? | | ?##T#???????????????????????? | | ??###???????????????????????? | | ????????????????????????????? | | ????????????????????????????? | | ????????????????????????????? | | ????????????????????????????? | | ????????????????????????????? | | ????????????????????????????? | | ????????????????????????????? | | ????????????????????????????? | | ????????????????????????????? | | ????????????????????????????? | | | | | | | | | | | | | | | | | +----------------------------------------------------+ Best States ------------- Heat Dissipation 31 Energy Generation 30 Energy Capacity 565 Matter Stores 300 Matter Capacity 300 Sight Range 16 Terrain Scan Density 10 Core Shielding 20 Evasion (%) 44 Targeting Accuracy 5 Item Schematics ----------------- None Robot Schematics ------------------ None Fabricated ------------ Nothing Repaired ---------- Nothing Alien Tech Used ----------------- None Achievements -------------- None Challenges ------------ None Game ------ Seed TransmissionXenonPrototype Manual? 0 Play Time 00:16:51 Cumulative 11.9 hours Start 2025.07.04 @ 22:09:38 End 2025.07.04 @ 22:25:38 Sessions 1 Manual Loads 0 Difficulty Rogue Special Mode None Game No. 35 Rogue 35 Adventurer 0 Explorer 0 Win Type - Total 0 Types 0/0/0/0/0/0/0/0/0/0 Lore% 9 Gallery% 16 Achievement% 12 Wizard Run 0 Options --------- Layout 1 ASCII 0 Keyboard 0 Movement Arrows Keybinds 0 Fullscreen 1 Font 24/Smallcaps Map View 50x35 Zoom Use 0% Tactical HUD 1 Map Filters NONE Filters NONE Steam 1 RUN: f60b1fa2-8df3-454a-a8b5-59c13620d742